Cogmind - Beta 16 --- EXPLORER MODE // 2025.12.25 @ 13:17:15 Player: K.K.Y. Result: Destroyed by UY-ZCP(R) with Subdweller Laser Performance ------------- Evolutions (0) 0 Regions Visited (3) 600 Robots Destroyed (35) 175 Value Destroyed (760) 760 Prototype IDs (1) 20 Alien Tech Used (0) 0 Bonus (0) 0 TOTAL SCORE: 1555 Bonus ------- None Cogmind --------- Core Integrity 0/250 Matter 300/300 Energy 100/100 System Corruption 2% Temperature Cool (6) Movement Core (450) Ox8 Location -10/Subcaves Parts ------- > --- POWER (1) -------- (None) > --- PROPULSION (2) --- (None) > --- UTILITY (3) ------ Large Storage Unit Structural Scanner > --- WEAPON (2) ------- Improved Assault Rifle Barrage Gun > --- INVENTORY (15) --- Medium Storage Unit Experimental Sensor Array Light Armor Plating Medium Armor Plating Medium Armor Plating Medium Armor Plating Medium Armor Plating Rainbow Chip Subdweller Laser Subdweller Beam Cannon Improved Assault Rifle Improved Assault Rifle Barrage Gun Makeshift Shrapnel Gun Slug Cannon Peak State ------------ > --- POWER ------------ Ion Engine > --- PROPULSION ------- Light Treads Light Treads > --- UTILITY ---------- Large Storage Unit Structural Scanner Sensor Array > --- WEAPON ----------- Improved Assault Rifle Improved Assault Rifle > --- INVENTORY -------- Medium Storage Unit Experimental Sensor Array Medium Armor Plating Medium Armor Plating Medium Armor Plating Medium Armor Plating Improved Assault Rifle Mining Laser [Rating: 14] Favorites ----------- Power Ion Engine Engine Ion Engine Propulsion Light Treads Treads Light Treads Utility Large Storage Unit Device Sensor Array Storage Large Storage Unit Weapon Improved Assault Rifle Energy Gun Medium Laser Ballistic Gun Improved Assault Rifle Special Weapon Mining Laser Build | -11 -10 -10 -10 ------- Run | Yrd Mat Min Sub Slots Evolved 1 | . 1 . . Power . | . . . . Propulsion . | . . . . Utility 1 | . 1 . . Weapon . | . . . . Parts Attached 18 | 7 8 1 2 Power 1 | 1 . . . Engine 1 | 1 . . . Core . | . . . . Reactor . | . . . . Propulsion 5 | 2 2 1 . Treads 5 | 2 2 1 . Leg . | . . . . Wheel . | . . . . Hover . | . . . . Flight . | . . . . Utility 4 | 2 2 . . Device 2 | 1 1 . . Storage 2 | 1 1 . . Processor . | . . . . Hackware . | . . . . Protection . | . . . . Artifact . | . . . . Weapon 8 | 2 4 . 2 Energy Gun 3 | 2 1 . . Energy Cannon . | . . . . Ballistic Gun 4 | . 2 . 2 Ballistic Cannon . | . . . . Launcher . | . . . . Special Weapon 1 | . 1 . . Impact Weapon . | . . . . Slashing Weapon . | . . . . Piercing Weapon . | . . . . Special Melee Weapon . | . . . . Unidentified Prototypes 1 | . 1 . . Parts Lost 5 | . . . 5 Power 1 | . . . 1 Propulsion 2 | . . . 2 Utility 1 | . . . 1 Weapon 1 | . . . 1 Highest Loss Streak 3 | . . . 3 To Critical Strikes . | . . . . Average Backups 7 | . 4 7 11 Power . | . . . . Propulsion . | . . . . Utility 4 | . 2 5 6 Weapon 2 | . 1 2 4 Tool/Special . | . . . . Unused Backups 14 | . . . 14 Power . | . . . . Propulsion . | . . . . Utility 7 | . . . 7 Weapon 7 | . . . 7 Tool/Special . | . . . . Average Slot Usage (%) 89 | . 95 100 78 Engine 10 | . 12 12 7 Treads 21 | . 25 25 15 Device 19 | . 17 25 17 Storage 13 | . 15 12 12 Energy Gun 3 | . 9 . . Ballistic Gun 19 | . 14 25 20 Special Weapon 1 | . . . 4 Peak Build Rating 14 | 7 13 14 14 Average Rating 12 | 6 10 13 12 On Entrance 8 | . 7 13 14 Avg Prop Armor Cover (%) . | . . . . Naked Turns . | . . . . Heaviest Build 42 | 20 42 33 33 Greatest Support 40 | 40 40 40 40 Greatest Overweight (x) 9 | . 1 . 9 Average Overweight (x) . | . . . 1 Largest Inventory Capacity 15 | 10 15 15 15 Average Capacity 14 | 9 14 15 15 Most Carried 15 | 5 8 8 15 Average Carried 7 | . 4 7 11 Final Capacity 15 | 10 15 15 15 Final Carried 15 | 1 7 8 15 Class Distribution -------------------- 100% | Hacker-Mutant Dominant Class ---------------- Hacker-Mutant | -10/Materials Hacker-Mutant | -10/Mines Hacker-Mutant | -10/Subcaves Resources | -11 -10 -10 -10 ----------- Run | Yrd Mat Min Sub Matter Collected 945 | 270 226 72 377 Remotely . | . . . . Salvage Created 1140 | 200 474 93 373 Parts 63 | 8 25 9 21 Haulers Intercepted 2 | . 2 . . Recyclers Shooed . | . . . . Parts Field Recycled . | . . . . Retrieved Matter . | . . . . Parts Self-Destructed . | . . . . Prevented . | . . . . Parts Restored . | . . . . Kills | -11 -10 -10 -10 ------- Run | Yrd Mat Min Sub Combat Hostiles Destroyed 18 | . 7 2 9 Guns 17 | . 7 2 8 Cannons 1 | . . . 1 Classes Destroyed 10 | 3 5 . 2 Worker 4 | 2 1 1 . Builder 4 | . 4 . . Tunneler 3 | 3 . . . Hauler 2 | . 2 . . Recycler 1 | 1 . . . Watcher 3 | . 3 . . Swarmer 2 | . 2 . . Grunt 7 | . 5 2 . Artisan 2 | . . . 2 Subdweller 9 | . . . 9 Best Kill Streak 4 | 2 4 3 3 Combat Bots Only 4 | . 4 2 3 Max Kills in Single Turn 2 | 1 1 2 1 Gunslinging . | . . . . Exploded . | . . . . Melee . | . . . . Uniques/NPCs Destroyed . | . . . . Combat | -11 -10 -10 -10 -------- Run | Yrd Mat Min Sub Hostile Shots Fired 107 | . 28 6 73 Missed 14 | . 3 1 10 Hits 93 | . 25 5 63 Projectile 93 | . 25 5 63 Damage Taken 1127 | . 183 49 895 Core 259 | . 31 . 228 Absorbed by Shields . | . . . . Ignored by Resistances 662 | . 119 31 512 Core Remaining (%) 100 | 100 . . . Volleys Fired 137 | 17 42 4 74 Largest 2 | 2 2 2 2 Hottest 123 | 100 115 46 123 Shots Fired 253 | 34 85 8 126 Gun 232 | 34 85 8 105 Cannon . | . . . . Launcher . | . . . . Special 21 | . . . 21 Kinetic 134 | . 21 8 105 Thermal 119 | 34 64 . 21 Explosive . | . . . . Electromagnetic . | . . . . Robot Hit Streak 44 | 11 13 20 44 Robot Miss Streak 2 | 1 2 . 1 Penetration Max . | . . . . Secondary Targets 2 | . 1 . 1 Max Gunslinging Chain 1 | . 1 . 1 Shots Hit Robots 181 | 27 64 7 83 Core Hits 54 | 7 24 3 20 Critical Kills . | . . . . Critical Parts Destroyed . | . . . . Critical Strikes 11 | 4 7 . . Burn 11 | 4 7 . . Melee Attacks . | . . . . Impact . | . . . . Slashing . | . . . . Piercing . | . . . . Sneak Attacks . | . . . . Combat Hostiles . | . . . . Follow-up Attacks . | . . . . Damage Inflicted 2408 | 337 892 126 1053 Guns 2312 | 337 892 126 957 Cannons . | . . . . Explosions . | . . . . Melee . | . . . . Ramming . | . . . . Kinetic 1313 | . 230 126 957 Thermal 1095 | 337 662 . 96 Explosive . | . . . . Electromagnetic . | . . . . Impact . | . . . . Slashing . | . . . . Piercing . | . . . . Highest Corruption 2 | . 2 2 2 Average Corruption 1 | . 1 2 2 Corruption Purged . | . . . . Corruption Blocked . | . . . . Effects 48 | . 11 19 18 Message Errors 10 | . 4 2 4 Matter Fused 11 | . 1 5 5 Heat Flow Errors 8 | . 2 4 2 Energy Discharges 4 | . . 2 2 Data Loss (minor) 9 | . 2 3 4 Data Loss (major) 4 | . 1 3 . Misfires 2 | . 1 . 1 Overload Shots . | . . . . Overflow Damage . | . . . . Projectiles . | . . . . Explosions . | . . . . Melee . | . . . . Knockbacks . | . . . . Impact . | . . . . Kinetic . | . . . . Secondary . | . . . . Self-Inflicted Damage . | . . . . Shots . | . . . . Rammed . | . . . . Targets Rammed . | . . . . Kicked . | . . . . Crushed . | . . . . Highest Temperature 397 | 195 397 218 163 Average Temperature 109 | 65 136 70 86 Received Heat Transfer 423 | . 99 30 294 Effects 3 | . 3 . . Shutdowns 1 | . 1 . . Matter Decay 1 | . 1 . . Damage (minor) 1 | . 1 . . Siege Activations . | . . . . Martial Activations . | . . . . Shielding Activations . | . . . . Robots Disrupted . | . . . . Combat Hostiles . | . . . . Robots Corrupted . | . . . . Combat Hostiles . | . . . . Parts Fried . | . . . . Impact Corruptions . | . . . . Robots Melted . | . . . . Combat Hostiles . | . . . . Parts Melted 9 | 3 6 . . Heat Transferred 3826 | 1295 2331 . 200 Parts Sabotaged . | . . . . Parts Stolen . | . . . . Parts Stripped . | . . . . Power Chain Reactions . | . . . . Alert | -11 -10 -10 -10 ------- Run | Yrd Mat Min Sub Maximum Alert Level . | . . . . Low Security (%) 100 | 100 100 100 . Level 1 . | . . . . Level 2 . | . . . . Level 3 . | . . . . Level 4 . | . . . . Level 5 . | . . . . High Security . | . . . . Max Security . | . . . . Peak Influence 85 | 10 85 40 . Initial . | . . . . Average 3 | 1 6 1 . Influence Increases 316 | 30 231 55 . Destroy 0b10 Robot/C 180 | . 140 40 . Destroy 0b10 Robot/NC 85 | 30 50 5 . Destroy Leader 50 | . 40 10 . Destroy Structure 1 | . 1 . . Influence Decreases 316 | 30 231 55 . Time Decay 316 | 30 231 55 . Squads Dispatched . | . . . . Investigation . | . . . . Extermination . | . . . . Reinforcement . | . . . . Assault . | . . . . Garrison . | . . . . Intercept . | . . . . Searches Triggered . | . . . . Construction Impeded . | . . . . Haulers Reinforced . | . . . . Active Scanning Responses . | . . . . Cargo Convoy Interrupts . | . . . . Stealth | -11 -10 -10 -10 --------- Run | Yrd Mat Min Sub Distress Signals . | . . . . Communications Jammed . | . . . . Distress Signals . | . . . . Times Spotted 25 | . 13 2 10 Peak Tracking Total 3 | . 3 2 3 Tactical Retreats . | . . . . Traps | -11 -10 -10 -10 ------- Run | Yrd Mat Min Sub Traps Triggered 7 | . 6 . 1 Indirectly . | . . . . Trap Hack Attempts . | . . . . Triggered . | . . . . Disarmed . | . . . . Reprogrammed . | . . . . Reused . | . . . . Traps Extracted . | . . . . Installed . | . . . . Triggered . | . . . . Machines | -11 -10 -10 -10 ---------- Run | Yrd Mat Min Sub Machines Disabled . | . . . . Max in Single Turn . | . . . . Machines Repaired . | . . . . Machines Dismantled . | . . . . Machines Sabotaged . | . . . . Overloaded Fab Kills . | . . . . Hacking | -11 -10 -10 -10 --------- Run | Yrd Mat Min Sub Machines Accessed 1 | . . 1 . Terminals . | . . . . Fabricators . | . . . . Repair Stations . | . . . . Recycling Units . | . . . . Scanalyzers . | . . . . Garrison Access . | . . . . Total Hacks 1 | . . 1 . Successful 1 | . . 1 . Failed . | . . . . Catastrophic . | . . . . Database Lockouts . | . . . . Manual . | . . . . Terminals . | . . . . Fabricators . | . . . . Repair Stations . | . . . . Recycling Units . | . . . . Scanalyzers . | . . . . Garrison Access . | . . . . Terminal Hacks 1 | . . 1 . Open Door 1 | . . 1 . Fabricator Hacks . | . . . . Repair Station Hacks . | . . . . Recycling Unit Hacks . | . . . . Scanalyzer . | . . . . Garrison Access Hacks . | . . . . Unauthorized Hacks . | . . . . Terminals . | . . . . Fabricators . | . . . . Repair Stations . | . . . . Recycling Units . | . . . . Scanalyzers . | . . . . Garrison Access . | . . . . Data Cores Recovered . | . . . . Used . | . . . . Hacking Detections . | . . . . Full Trace Events . | . . . . Feedback Events . | . . . . Feedback Blocked . | . . . . Robot Schematics Acquired . | . . . . Robots Built . | . . . . Authchips . | . . . . Time . | . . . . Total Robot Build Rating . | . . . . Part Schematics Acquired . | . . . . Parts Built . | . . . . Authchips . | . . . . Time . | . . . . Total Part Build Rating . | . . . . Part Studies Acquired . | . . . . Parts Repaired . | . . . . Time . | . . . . Parts Recycled . | . . . . Recycled Matter . | . . . . Retrieved Matter . | . . . . Retrieved Components . | . . . . Parts Scanalyzed . | . . . . Part Schematics Acquired . | . . . . Parts Damaged . | . . . . Bothacking | -11 -10 -10 -10 ------------ Run | Yrd Mat Min Sub Used RIF Installer . | . . . . Robots Hacked . | . . . . Non-combat . | . . . . Combat . | . . . . Robot Hacks Applied . | . . . . Relay Couplers Released . | . . . . Fabnet Peak Effective % . | . . . . Robots Rewired . | . . . . Allies Hacked . | . . . . Hacks Repelled . | . . . . Allies | -11 -10 -10 -10 -------- Run | Yrd Mat Min Sub Total Allies . | . . . . Largest Group . | . . . . Highest-Rated Group . | . . . . Highest-Rated Ally . | . . . . Total Orders . | . . . . Ally Attacks . | . . . . Total Damage . | . . . . Kills . | . . . . Allies Corrupted . | . . . . Allies Melted . | . . . . Intel | -11 -10 -10 -10 ------- Run | Yrd Mat Min Sub Active Infowar (turns) 4330 | 201 1313 1144 1672 Sensors 3383 | 201 1313 1144 725 Structural 3382 | . 566 1144 1672 Robot Analysis Total . | . . . . Derelict Logs Recovered . | . . . . Drone Launches . | . . . . Drone Recoveries . | . . . . Exploration | -11 -10 -10 -10 ------------- Run | Yrd Mat Min Sub Turns Passed 4348 | 219 1313 1144 1672 Spaces Moved 2037 | 90 661 689 597 Core 146 | 19 . . 127 Treads 1891 | 71 661 689 470 Legs . | . . . . Wheels . | . . . . Hover . | . . . . Flight . | . . . . Fastest Speed 50 | 50 160 160 160 Average Speed 182 | 136 174 160 223 Slowest Speed 500 | 160 240 160 500 Overloaded Moves . | . . . . Propulsion Burnouts . | . . . . Robots Hopped . | . . . . Potential Cave-ins . | . . . . Cave-ins Triggered . | . . . . Exploration Rate (%) 58 | 9 97 99 27 Regions Visited 3 Branch Regions 2 Pre-discovered Areas . | . . . . Known Exits Taken 3 | 1 1 1 . Unknown Exits Taken . | . . . . Scrap Searched 7 | . . . 7 Spaces Dug . | . . . . Terrain Destroyed . | . . . . Melee . | . . . . Projectile . | . . . . AOE . | . . . . Terrain Rammed . | . . . . Walls Destroyed . | . . . . Machines Disabled . | . . . . Actions | -11 -10 -10 -10 --------- Run | Yrd Mat Min Sub Total 2387 | 151 743 723 770 Wait 151 | 32 8 27 84 Move 2034 | 89 660 688 597 Hop . | . . . . Pick Up 30 | 6 13 2 9 Fast Attach 2 | 2 . . . Attach 13 | 5 7 . 1 Detach 5 | . 5 . . Swap 7 | . 3 1 3 Drop 8 | . 5 1 2 Fire 137 | 17 42 4 74 Melee . | . . . . Ram . | . . . . Kick . | . . . . Crush . | . . . . Escape Stasis . | . . . . Rewire . | . . . . Trap . | . . . . Miscellaneous . | . . . . Route ------- -11/Scrapyard -10/Materials (discovered 5 exits: *Mat x3 / *Min x2) -10/Mines (discovered 3 exits: *Mat x2 / *Sub) -10/Subcaves History --------- Turn | Location | Event 4 | -11/Scrapyard | Identified exit to Materials 4 | -11/Scrapyard | Discovered exit to Materials (range 16) 220 | -11/Scrapyard | Entered Materials 220 | -10/Materials | Evolved 1 slot: Utility x1 298 | -10/Materials | Identified exit to Mines 298 | -10/Materials | Discovered exit to Mines (range 6) 316 | -10/Materials | Build established: Hacker-Mutant 701 | -10/Materials | Identified exit to Materials 701 | -10/Materials | Discovered exit to Materials (range 16) 990 | -10/Materials | Discovered exit to Materials (range 12) 1259 | -10/Materials | Discovered exit to Materials (range 14) 1474 | -10/Materials | Discovered exit to Mines (range 13) 1533 | -10/Materials | Entered Mines 1622 | -10/Mines | Met a Derelict who couldn't figure out how to use a Trap Extractor 1714 | -10/Mines | YI-UF0 nonchalantly dropped a Grenade Launcher on the ground 1869 | -10/Mines | Discovered exit to Materials (range 6) 1904 | -10/Mines | Discovered exit to Materials (range 7) 2004 | -10/Mines | Found a damaged Exp. Sensor Array with a note attached 2007 | -10/Mines | Found Prototype Device 2108 | -10/Mines | Identified exit to Subcaves 2108 | -10/Mines | Discovered exit to Subcaves (range 11) 2677 | -10/Mines | Entered Subcaves 3098 | -10/Subcaves | Ambushed by angry Subdweller bent on revenge 3104 | -10/Subcaves | Core integrity fell below 50% 3367 | -10/Subcaves | A Subdweller sparked back to life 3367 | -10/Subcaves | A Subdweller sparked back to life 3367 | -10/Subcaves | A Subdweller sparked back to life 3421 | -10/Subcaves | Found Prototype Processor 3709 | -10/Subcaves | Disturbed a concealed Subdweller 3711 | -10/Subcaves | Core integrity fell below 20% 3749 | -10/Subcaves | Lost 3 parts (1p2n) 4342 | -10/Subcaves | Disturbed a concealed Subdweller 4349 | -10/Subcaves | Destroyed by UY-ZCP(R) with Subdweller Laser Last Messages --------------- 03889_ Searching scrap... 03889_ Found Battle Rifle. 03889_ Found 59 Matter. 03907_ Searching scrap... 03907_ Found Battle Cannon. 03907_ Found 50 Matter. 03970_ System corrupted: Component data lost. 03992_ System corrupted: Matter fused (-8). 04046_ &MVMBJAHGJZZAJ,%=P6KRTILK%V 04168_ System corrupted: Energy discharge (-29). 04319_ System corrupted: Matter fused (-9). 04321_ KT-7IZ(R) destroyed. 04329_ Acquired 52 matter. 04338_ Searching scrap... 04338_ Found Spk. Treads. 04338_ Found 63 Matter. 04339_ Acquired 11 matter. 04342_ UY-ZCP(R) angrily emerges from the Twisted Machinery. 04343_ Acquired 7 matter. Map ----- +----------------------------------------------------+ | ???????####### ##????????????????????? | | ???????####### ## ###???????????????????? | | ??????### ## ##???????????????????? | | ??????### ##?? ##???????????????????? | | ??????## ## ### ###??? ##???????????????????? | | ??????## ## ########?????????????????????????? | | ??????### ########??????????????????????????? | | ??????##### ####???????????????????????????????? | | ???????##### ###????????????????????????????????? | | ????????#### ##?????????????????????????????????? | | ????????### ###????????????????????????????????? | | ???????### ###??###???????????????????????????? | | ?????##### ##??###???????????????????????????? | | ?????#### ##?? ##????###????????????????????? | | ?????## ###? ##????## ????????????????????? | | ?????## ### ##????"" ????????????????????? | | ?????## ## # ??? "" ????????????????????? | | ?????## ##### "" ???"????????????????? | | ?????## #####?### "" ? """??????????????? | | ?????### ######### """?"""""??????????????? | | ?????### ######## """""""""???????????????? | | ??????## ##### ###""# ???"""??????????? | | ??????## ##<## # ""##??????????? | | ??????### ##<$<# # ## "##??????????? | | ??????#### ###### #$$=R# ###??????????? | | ???????### ######### #<$<@#&= ##???????????? | | ????????######??#### ##<<#& ! ###??????????? | | ????????####??????## ####[*##### ##??????????? | | ??????????????????### ##### ?? #??????????? | | ??????????????????### ###???????????????????? | | ???????????????????## ####???????????????????? | | ???????????????????## #####????????????????????? | | ???????????????????#########?????????????????????? | | ???????????????????#######???????????????????????? | | ?????????????????????????????????????????????????? | | ?????????????????????????????????????????????????? | | ?????????????????????????????????????????????????? | | ?????????????????????????????????????????????????? | | ?????????????????????????????????????????????????? | | ?????????????????????????????????????????????????? | | ?????????????????????????????????????????????????? | | ?????????????????????????????????????????????????? | | ?????????????????????????????????????????????????? | | ?????????????????????????????????????????????????? | | ?????????????????????????????????????????????????? | | ?????????????????????????????????????????????????? | | ?????????????????????????????????????????????????? | | ?????????????????????????????????????????????????? | | | | | +----------------------------------------------------+ Best States ------------- Heat Dissipation 25 Energy Generation 10 Energy Capacity 250 Matter Stores 300 Matter Capacity 300 Sight Range 16 Robot Scan Range 14 Terrain Scan Density 10 Resistance: KI 35 Resistance: TH 35 Resistance: EX 35 Resistance: EM 35 Resistance: I 35 Resistance: S 35 Resistance: P 35 Evasion (%) 50 Recoil Reduction 2 Offensive Hacking 20 Item Schematics ----------------- None Robot Schematics ------------------ None Fabricated ------------ Nothing Repaired ---------- Nothing Studied --------- None Alien Tech Used ----------------- None Achievements -------------- None Challenges ------------ None Game ------ Seed PlasmaWeightKit Manual? 0 Play Time 00:17:57 Cumulative 225.8 hours Start 2025.12.25 @ 13:03:32 End 2025.12.25 @ 13:17:15 Sessions 1 Manual Loads 0 Difficulty Explorer Special Mode None Game No. 346 Rogue 0 Adventurer 0 Explorer 346 Win Type - Total 0 Types 0/0/0/0/0/0/0/0/0/0 Lore% 71 Gallery% 68 Achievement% 53 Wizard Run 0 Options --------- Layout 1 ASCII 0 Keyboard 0 Movement Mouse Keybinds 0 Fullscreen 1 Font 24/Smallcaps Map View 50x35 Zoom Use 0% Tactical HUD 1 Map Filters NONE Filters NONE Steam 1 RUN: 021ea09a-6fc2-444a-b074-e4334d388db0